Cogmind - Beta 11 X4 @@@ ROGUE MODE // 2021.05.16 @ 17:39:33 Player: Vectis Result: Destroyed by Y-45 Defender with Heavy Assault Rifle Performance ------------- Evolutions (2) 1000 Regions Visited (9) 1800 Robots Destroyed (173) 865 Value Destroyed (4711) 4711 Prototype IDs (11) 220 Alien Tech Used (0) 0 Bonus (615) 615 TOTAL SCORE: 9211 Bonus ------- High Alert Combat Kills 87 Follower Combat Kills 143 Entered Garrisons 200 Used RIF Installer 500 Friendly Fire -315 Cogmind --------- Core Integrity 0/550 Matter 254/300 Energy 310/310 System Corruption 4% Temperature Cool (0) Movement Rolling (210) Ox8 Location -8/Materials Parts ------- > --- POWER (1) -------- Heavy Deuterium Engine > --- PROPULSION (2) --- Wheel Compact Wheel > --- UTILITY (6) ------ Humpback Machine Analyzer Advanced Targeting Computer Hardened Light Armor Plating Hardened Light Armor Plating > --- WEAPON (2) ------- Improved Assault Rifle Enhanced Autogun > --- INVENTORY (35) --- Heavy Deuterium Engine Light Treads Advanced Treads Wheel Cooling System Huge Storage Unit High-capacity Matter Pod (200) Hardened Light Armor Plating Reflective Plating Hacking Suite Relay Coupler [Swarmer] (34) Relay Coupler [Grunt] (24) Relay Coupler [Grunt] (27) Relay Coupler [Duelist] (23) Relay Coupler [Specialist] (20) Relay Coupler [Hunter] (14) Relay Coupler [Hunter] (18) Relay Coupler [Behemoth] (8) Relay Coupler [Behemoth] (8) System Backup Module Long-range Tractor Beam Heavy Particle Gun Heavy Particle Gun Advanced Beam Cannon Advanced Beam Cannon Advanced Beam Cannon Enhanced Autogun Advanced EMP Blaster Rocket Launcher Datajack Plasma Cutter Heavy Mace Peak State ------------ > --- POWER ------------ Heavy Deuterium Engine > --- PROPULSION ------- Light Treads Advanced Treads > --- UTILITY ---------- Humpback Advanced Targeting Computer Hardened Light Armor Plating Hardened Light Armor Plating System Backup Module > --- WEAPON ----------- Improved Assault Rifle Advanced EMP Blaster > --- INVENTORY -------- Heavy Deuterium Engine Wheel Wheel Wheel Cooling System Huge Storage Unit High-capacity Matter Pod Machine Analyzer Hardened Light Armor Plating Relay Coupler [NC] Relay Coupler [Swarmer] Relay Coupler [Grunt] Relay Coupler [Grunt] Relay Coupler [Grunt] Relay Coupler [Grunt] Relay Coupler [Duelist] Relay Coupler [Specialist] Relay Coupler [Hunter] Relay Coupler [Hunter] Relay Coupler [Behemoth] Relay Coupler [Behemoth] Long-range Tractor Beam Heavy Particle Gun Heavy Particle Gun Advanced Beam Cannon Advanced Beam Cannon Advanced Beam Cannon Improved Assault Rifle Enhanced Autogun Enhanced Autogun Datajack Plasma Cutter Heavy Mace [Rating: 39] Favorites ----------- Power Improved Ion Engine Engine Improved Ion Engine Power Core Light Nuclear Core Propulsion Light Treads Treads Light Treads Leg Aluminum Leg Wheel Wheel Utility Advanced Targeting Computer Device Cooling System Storage Huge Storage Unit Processor Advanced Targeting Computer Hackware Hacking Suite Protection Hardened Light Armor Plating Weapon Particle Cannon Energy Gun Small Laser Energy Cannon Particle Cannon Ballistic Gun Improved Assault Rifle Launcher Missile Launcher Impact Weapon Heavy Mace Slashing Weapon Scythe Special Melee Weapon Datajack Build | -11 -10 -10 -9 -9 -9 -8 -8 -8 -8 ------- Run | Scr Mat Min Mat Min Exi Min Mat Gar Mat Slots Evolved 4 | . . . 2 . . . 2 . . Power . | . . . . . . . . . . Propulsion . | . . . . . . . . . . Utility 4 | . . . 2 . . . 2 . . Weapon . | . . . . . . . . . . Parts Attached 212 | 3 20 8 20 . 1 7 75 37 41 Power 15 | . 4 . 3 . . . 3 4 1 Engine 14 | . 4 . 3 . . . 3 3 1 Core 1 | . . . . . . . . 1 . Reactor . | . . . . . . . . . . Propulsion 68 | 2 6 6 6 . . 5 25 5 13 Treads 25 | . . 2 4 . . . 11 2 6 Leg . | . . . . . . . . . . Wheel 43 | 2 6 4 2 . . 5 14 3 7 Hover . | . . . . . . . . . . Flight . | . . . . . . . . . . Utility 52 | . 3 2 4 . 1 . 19 13 10 Device 13 | . 2 2 1 . . . 2 3 3 Storage 6 | . 1 . . . 1 . 2 2 . Processor 8 | . . . 1 . . . 5 1 1 Hackware 9 | . . . 1 . . . 2 4 2 Protection 16 | . . . 1 . . . 8 3 4 Artifact . | . . . . . . . . . . Weapon 77 | 1 7 . 7 . . 2 28 15 17 Energy Gun 7 | 1 4 . . . . . 2 . . Energy Cannon 21 | . 2 . 3 . . . 10 6 . Ballistic Gun 26 | . 1 . 3 . . 2 9 2 9 Ballistic Cannon . | . . . . . . . . . . Launcher 6 | . . . . . . . 4 . 2 Special Weapon . | . . . . . . . . . . Impact Weapon 7 | . . . . . . . . 4 3 Slashing Weapon 4 | . . . 1 . . . 3 . . Piercing Weapon . | . . . . . . . . . . Special Melee Weapon 6 | . . . . . . . . 3 3 Unidentified Prototypes 7 | . . . 1 . . . 4 1 1 Parts Lost 32 | . 10 . 2 . . . 15 . 5 Power 6 | . 3 . 1 . . . 2 . . Propulsion 10 | . 2 . 1 . . . 5 . 2 Utility 7 | . . . . . . . 5 . 2 Weapon 9 | . 5 . . . . . 3 . 1 Highest Loss Streak 9 | . 6 . 2 . . . 9 . 2 Average Slot Usage (%) 93 | . 97 100 98 100 91 87 89 97 89 Engine 10 | . 13 14 11 11 11 11 8 8 8 Treads 10 | . . . 14 22 22 9 1 15 . Wheel 9 | . 27 28 7 . . 12 16 2 17 Device 6 | . 12 14 11 11 2 . 3 7 7 Storage 10 | . 14 14 11 11 10 11 9 9 9 Processor 13 | . . . 10 11 11 11 18 17 17 Hackware 5 | . . . 8 11 11 11 6 3 1 Protection 6 | . . . 1 . . . 7 14 9 Energy Cannon 14 | . 5 28 20 22 22 19 12 13 . Ballistic Gun 3 | . 10 . 1 . . 2 4 2 17 Naked Turns . | . . . . . . . . . . Heaviest Build 228 | 11 94 94 98 97 215 215 225 225 228 Greatest Support 40 | 20 32 26 40 40 40 40 40 40 26 Greatest Overweight (x) 21 | . 4 4 4 2 5 10 21 11 11 Average Overweight (x) 5 | . 2 3 3 2 3 8 9 3 9 Largest Inventory Capacity 35 | 8 25 25 25 25 35 35 35 35 35 Average Capacity 29 | 8 24 25 25 25 32 35 34 26 35 Most Carried 35 | 8 25 25 25 25 32 35 35 35 35 Average Carried 27 | 7 18 24 24 25 25 33 34 25 34 Final Capacity 35 | 8 25 25 25 25 35 35 35 35 35 Final Carried 35 | 8 25 25 25 25 32 34 35 35 32 Class Distribution -------------------- 38% | Hauler-Mutant 27% | Bothacker-Mutant 18% | Mutant 12% | Scavenger-Mutant Dominant Class ---------------- Mutant | -10/Materials Scavenger-Mutant | -10/Mines Scavenger-Mutant | -9/Materials Mutant | -9/Mines Hauler-Mutant | -9/Exiles Hauler-Mutant | -8/Mines Hauler-Mutant | -8/Materials Bothacker-Mutant | -8/Garrison Bothacker-Mutant | -8/Materials Resources | -11 -10 -10 -9 -9 -9 -8 -8 -8 -8 ----------- Run | Scr Mat Min Mat Min Exi Min Mat Gar Mat Matter Collected 4085 | 253 251 232 195 . 10 158 1311 584 1091 Remotely . | . . . . . . . . . . Salvage Created 6254 | 171 1091 26 840 118 . 271 2201 320 1216 Parts 376 | 15 74 6 53 5 . 15 136 16 56 Haulers Intercepted 14 | . 2 . 4 . . . 6 . 2 Recyclers Shooed 5 | . 1 . . . . . 3 . 1 Parts Field Recycled . | . . . . . . . . . . Retrieved Matter . | . . . . . . . . . . Parts Self-Destructed . | . . . . . . . . . . Prevented . | . . . . . . . . . . Kills | -11 -10 -10 -9 -9 -9 -8 -8 -8 -8 ------- Run | Scr Mat Min Mat Min Exi Min Mat Gar Mat Combat Hostiles Destroyed 96 | . 20 . 13 2 . 2 31 9 19 Guns 49 | . 16 . . . . 1 14 . 18 Cannons 34 | . 2 . 13 2 . 1 8 8 . AOE 10 | . 1 . . . . . 8 . 1 Classes Destroyed 17 | 3 6 . 1 . . . 4 3 . Worker 22 | 2 2 1 . . . 5 11 . 1 Builder 8 | . 2 1 1 . . . 3 . 1 Tunneler 8 | 4 2 . 1 . . . 1 . . Hauler 14 | . 2 . 4 . . . 6 . 2 Recycler 11 | 1 1 . . 1 . 1 4 . 3 Mechanic 1 | . . . . . . . 1 . . Operator 3 | . 3 . . . . . . . . Watcher 8 | . 2 . 1 . . . 4 . 1 Swarmer 22 | . 5 . 2 2 . . 4 5 4 Grunt 45 | . 15 . 7 . . 2 16 . 5 Brawler 4 | . . . . . . . 1 2 1 Duelist 2 | . . . . . . . 1 . 1 Protector 1 | . . . . . . . . 1 . Sentry 19 | . . . 4 . . . 8 . 7 Demolisher 1 | . . . . . . . . 1 . Hunter 2 | . . . . . . . . 1 1 Programmer 1 | . . . . . . . 1 . . Thug 1 | . . . 1 . . . . . . Best Kill Streak 13 | 1 5 1 5 3 . 2 13 4 7 Combat Bots Only 8 | . 3 . 4 1 . 1 8 4 6 Max Kills in Single Turn 5 | 1 2 1 2 1 . 1 5 2 2 Gunslinging 1 | . 1 . . . . . . . . Exploded 4 | . 1 . . . . . 4 . 1 Melee . | . . . . . . . . . . Uniques/NPCs Destroyed . | . . . . . . . . . . Combat | -11 -10 -10 -9 -9 -9 -8 -8 -8 -8 -------- Run | Scr Mat Min Mat Min Exi Min Mat Gar Mat Damage Taken 5520 | . 773 8 436 119 . 437 1827 555 1365 Core 1008 | . 168 . 53 26 . 211 318 23 209 Absorbed by Shields 9 | . . . . . . . . 9 . Core Remaining (%) 53 | 100 . 32 . . . 27 . . . Volleys Fired 478 | 23 109 5 52 7 . 25 141 27 89 Largest 2 | 2 2 2 2 2 . 2 2 2 2 Hottest 136 | 70 136 136 136 136 . 136 136 136 48 Shots Fired 899 | 46 203 10 92 14 . 44 278 46 166 Gun 568 | 46 179 . . . . 3 175 . 165 Cannon 324 | . 24 10 92 14 . 41 97 46 . Launcher 7 | . . . . . . . 6 . 1 Special . | . . . . . . . . . . Kinetic 453 | 23 89 . . . . 3 173 . 165 Thermal 393 | 20 71 10 92 14 . 41 99 46 . Explosive 6 | . . . . . . . 6 . . Electromagnetic 47 | 3 43 . . . . . . . 1 Robot Hit Streak 42 | 8 16 2 12 6 . 14 42 11 27 Robot Miss Streak 5 | 3 5 3 2 1 . 3 3 1 1 Penetration Max . | . . . . . . . . . . Secondary Targets 7 | . 4 . . . . . 2 . 1 Max Gunslinging Chain 1 | . 1 . . . . . 1 . 1 Shots Hit Robots 650 | 29 132 4 65 9 . 29 209 31 142 Core Hits 253 | 10 54 2 22 3 . 11 96 10 45 Critical Kills 3 | . 1 . . . . . 1 1 . Critical Parts Destroyed 2 | . . . . . . . 1 . 1 Critical Strikes 10 | 1 5 . . . . . 2 1 1 Burn 4 | 1 3 . . . . . . . . Meltdown 3 | . 1 . . . . . 1 1 . Destroy 2 | . . . . . . . 1 . 1 Corrupt 1 | . 1 . . . . . . . . Melee Attacks 60 | . . . 7 . . . 11 31 11 Impact 24 | . . . . . . . . 18 6 Slashing 18 | . . . 7 . . . 11 . . Piercing . | . . . . . . . . . . Sneak Attacks 8 | . . . . . . . . 5 3 Combat Hostiles . | . . . . . . . . . . Follow-up Attacks . | . . . . . . . . . . Damage Inflicted 12107 | 350 1546 98 1490 201 . 589 4665 537 2631 Guns 5940 | 305 1194 . . . . 34 2218 . 2189 Cannons 4531 | . 313 81 1490 201 . 555 1449 442 . Explosions 1481 | 45 39 . . . . . 955 . 442 Melee 95 | . . . . . . . . 95 . Ramming 60 | . . 17 . . . . 43 . . Kinetic 4927 | 102 421 . . . . 34 2181 . 2189 Thermal 5642 | 233 764 81 1490 201 . 555 1486 442 390 Explosive 955 | . . . . . . . 955 . . Electromagnetic 428 | 15 361 . . . . . . . 52 Impact 95 | . . . . . . . . 95 . Slashing . | . . . . . . . . . . Piercing . | . . . . . . . . . . Highest Corruption 7 | . . . . . . . 4 4 7 Average Corruption 4 | . . . . . . . 4 4 4 Corruption Purged 7 | . . . . . . . . . 7 Effects 178 | . . . . . . . 48 96 34 Message Errors 51 | . . . . . . . 14 25 12 Matter Fused 40 | . . . . . . . 10 24 6 Heat Flow Errors 28 | . . . . . . . 8 15 5 Energy Discharges 25 | . . . . . . . 7 15 3 Parts Rejected 1 | . . . . . . . 1 . . Data Loss (minor) 32 | . . . . . . . 7 17 8 Weapon Failures 1 | . . . . . . . 1 . . Overload Shots . | . . . . . . . . . . Overflow Damage 161 | . 2 . 12 18 . 6 63 60 . Projectiles 56 | . 2 . 12 18 . 6 13 5 . Explosions 50 | . . . . . . . 50 . . Melee 55 | . . . . . . . . 55 . Knockbacks . | . . . . . . . . . . Impact . | . . . . . . . . . . Kinetic . | . . . . . . . . . . Secondary . | . . . . . . . . . . Self-Inflicted Damage 35 | . . 8 . . . . 21 . 6 Shots 1 | . . . . . . . . . 1 Rammed 2 | . . 1 . . . . 1 . . Targets Rammed 2 | . . 1 . . . . 1 . . Kicked . | . . . . . . . . . . Crushed . | . . . . . . . . . . Highest Temperature 663 | 100 178 135 42 12 . 663 427 255 289 Average Temperature 75 | 39 42 53 11 5 . 222 65 70 88 Received Heat Transfer 1834 | . 324 . 183 . . 153 720 31 423 Effects 27 | . . . . . . 19 4 . 4 Shutdowns 5 | . . . . . . 4 1 . . Energy Bleed 5 | . . . . . . 5 . . . Interference 11 | . . . . . . 4 3 . 4 Matter Decay 1 | . . . . . . 1 . . . Short Circuit 2 | . . . . . . 2 . . . Damage (minor) 1 | . . . . . . 1 . . . Damage (core) 2 | . . . . . . 2 . . . Siege Activations . | . . . . . . . . . . Robots Corrupted . | . . . . . . . . . . Combat Hostiles . | . . . . . . . . . . Parts Fried 1 | . . . . . . . . 1 . Impact Corruptions 1 | . . . . . . . . 1 . Robots Melted 4 | . 2 . . . . . 1 1 . Combat Hostiles 3 | . 1 . . . . . 1 1 . Parts Melted 20 | . 5 . 2 1 . 3 6 3 . Heat Transferred 10060 | 629 1821 148 2553 333 . 999 2516 761 300 Parts Sabotaged . | . . . . . . . . . . Parts Stolen . | . . . . . . . . . . Parts Stripped . | . . . . . . . . . . Power Chain Reactions 2 | 1 1 . . . . . . . . Missiles Intercepted . | . . . . . . . . . . Alert | -11 -10 -10 -9 -9 -9 -8 -8 -8 -8 ------- Run | Scr Mat Min Mat Min Exi Min Mat Gar Mat Peak Influence 610 | 35 347 109 247 47 . 95 272 542 610 Initial 263 | . 22 84 . 2 . . 5 159 263 Average 204 | 19 215 39 69 6 . 17 134 364 263 Maximum Alert Level 2 | . 1 . 1 . . . 1 2 2 Low Security (%) 50 | 100 35 100 92 100 . 100 73 7 32 Level 1 35 | . 64 . 7 . . . 26 55 44 Level 2 13 | . . . . . . . . 37 22 Level 3 . | . . . . . . . . . . Level 4 . | . . . . . . . . . . Level 5 . | . . . . . . . . . . High Security . | . . . . . . . . . . Max Security . | . . . . . . . . . . Squads Dispatched 14 | . 6 1 2 . . . 2 . 3 Investigation 8 | . 3 1 1 . . . 1 . 2 Extermination . | . . . . . . . . . . Reinforcement 4 | . 3 . 1 . . . . . . Assault . | . . . . . . . . . . Garrison 2 | . . . . . . . 1 . 1 Intercept . | . . . . . . . . . . Construction Impeded . | . . . . . . . . . . Haulers Reinforced . | . . . . . . . . . . Cargo Convoy Interrupts . | . . . . . . . . . . Stealth | -11 -10 -10 -9 -9 -9 -8 -8 -8 -8 --------- Run | Scr Mat Min Mat Min Exi Min Mat Gar Mat Distress Signals 12 | . 1 . 1 . . . 4 . 6 Communications Jammed . | . . . . . . . . . . Distress Signals . | . . . . . . . . . . Times Spotted 184 | . 43 . 21 3 . 7 61 13 36 Peak Tracking Total 7 | . 5 . 3 3 . 4 7 4 5 Tactical Retreats 15 | . 6 . . 1 . 3 1 . 4 Traps | -11 -10 -10 -9 -9 -9 -8 -8 -8 -8 ------- Run | Scr Mat Min Mat Min Exi Min Mat Gar Mat Traps Triggered 9 | . 1 . . . . . . 6 2 Indirectly . | . . . . . . . . . . Trap Hack Attempts . | . . . . . . . . . . Triggered . | . . . . . . . . . . Disarmed . | . . . . . . . . . . Reprogrammed . | . . . . . . . . . . Reused 1 | . . . . . . 1 . . . Traps Extracted . | . . . . . . . . . . Installed 5 | . . . . . . 1 4 . . Triggered 1 | . . . . . . 1 . . . Machines | -11 -10 -10 -9 -9 -9 -8 -8 -8 -8 ---------- Run | Scr Mat Min Mat Min Exi Min Mat Gar Mat Machines Disabled 9 | . . 1 1 . . . 1 4 2 Max in Single Turn 2 | . . 1 1 . . . 1 1 2 Garrison Relay 4 | . . . . . . . . 4 . Machines Sabotaged . | . . . . . . . . . . Garrisons Compromised . | . . . . . . . . . . Overloaded Fab Kills . | . . . . . . . . . . Fab Network Shutdowns . | . . . . . . . . . . Hacking | -11 -10 -10 -9 -9 -9 -8 -8 -8 -8 --------- Run | Scr Mat Min Mat Min Exi Min Mat Gar Mat Machines Accessed 40 | . 8 1 7 . 1 . 15 . 8 Terminals 27 | . 5 . 5 . . . 10 . 7 Fabricators . | . . . . . . . . . . Repair Stations 4 | . 1 . 1 . . . 2 . . Recycling Units 4 | . 2 . . . . . 1 . 1 Scanalyzers 2 | . . . 1 . . . 1 . . Garrison Access 1 | . . . . . . . 1 . . Total Hacks 148 | . 25 1 31 . 1 . 69 . 21 Successful 110 | . 18 1 26 . 1 . 52 . 12 Failed 38 | . 7 . 5 . . . 17 . 9 Catastrophic 2 | . . . . . . . 1 . 1 Database Lockouts . | . . . . . . . . . . Manual 81 | . 15 . 14 . . . 39 . 13 Terminals 92 | . 21 . 17 . . . 35 . 19 Fabricators . | . . . . . . . . . . Repair Stations 18 | . 2 . 4 . . . 12 . . Recycling Units 8 | . 2 . . . . . 4 . 2 Scanalyzers 20 | . . . 10 . . . 10 . . Garrison Access 8 | . . . . . . . 8 . . Terminal Hacks 32 | . 8 1 6 . 1 . 11 . 5 Record 1 | . . . . . 1 . . . . Part Schematic 2 | . 1 . . . . . 1 . . Robot Schematic 1 | . . . . . . . 1 . . Robot Analysis 6 | . 3 . 1 . . . 2 . . Prototype ID Bank 3 | . 1 . 1 . . . 1 . . Open Door 1 | . . 1 . . . . . . . Branch Access Points 1 | . . . 1 . . . . . . Terminal Index 2 | . . . 1 . . . . . 1 Repair Station Index 1 | . . . . . . . 1 . . Unreport Threat 6 | . . . . . . . 3 . 3 Locate Traps 2 | . 1 . 1 . . . . . . Patrol Status 3 | . 1 . 1 . . . . . 1 Zone Layout 3 | . 1 . . . . . 2 . . Fabricator Hacks . | . . . . . . . . . . Repair Station Hacks 18 | . 2 . 4 . . . 12 . . Scan Component 9 | . 1 . 2 . . . 6 . . Repair 9 | . 1 . 2 . . . 6 . . Recycling Unit Hacks . | . . . . . . . . . . Scanalyzer 18 | . . . 9 . . . 9 . . Insert Component 7 | . . . 3 . . . 4 . . Analyze 11 | . . . 6 . . . 5 . . Garrison Access Hacks 1 | . . . . . . . 1 . . Unlock Access 1 | . . . . . . . 1 . . Unauthorized Hacks 41 | . 8 . 7 . . . 19 . 7 Terminals 32 | . 6 . 6 . . . 13 . 7 Track 7 | . . . 3 . . . 3 . 1 Assimilate 3 | . 1 . . . . . 1 . 1 Botnet 15 | . 3 . 2 . . . 6 . 4 Disrupt 3 | . 1 . . . . . 2 . . Operators 3 | . . . 1 . . . 1 . 1 Search 1 | . 1 . . . . . . . . Fabricators . | . . . . . . . . . . Repair Stations . | . . . . . . . . . . Recycling Units 2 | . 2 . . . . . . . . Tunnel 2 | . 2 . . . . . . . . Scanalyzers 2 | . . . 1 . . . 1 . . Researchers 1 | . . . . . . . 1 . . Extract 1 | . . . 1 . . . . . . Garrison Access 5 | . . . . . . . 5 . . Broadcast 1 | . . . . . . . 1 . . Restock 1 | . . . . . . . 1 . . Reprogram 1 | . . . . . . . 1 . . Intercept 1 | . . . . . . . 1 . . Watchers 1 | . . . . . . . 1 . . Data Cores Recovered . | . . . . . . . . . . Used . | . . . . . . . . . . Hacking Detections 32 | . 6 . 6 . . . 14 . 6 Full Trace Events 1 | . . . . . . . 1 . . Feedback Events . | . . . . . . . . . . Feedback Blocked . | . . . . . . . . . . Robot Schematics Acquired 1 | . . . . . . . 1 . . Robots Built . | . . . . . . . . . . Matter . | . . . . . . . . . . Time . | . . . . . . . . . . Total Robot Build Rating . | . . . . . . . . . . Part Schematics Acquired 12 | . 1 . 6 . . . 5 . . Parts Built . | . . . . . . . . . . Matter . | . . . . . . . . . . Time . | . . . . . . . . . . Total Part Build Rating . | . . . . . . . . . . Parts Repaired 9 | . 1 . 2 . . . 6 . . Time 342 | . 26 . 76 . . . 240 . . Parts Recycled . | . . . . . . . . . . Recycled Matter . | . . . . . . . . . . Retrieved Matter . | . . . . . . . . . . Retrieved Components . | . . . . . . . . . . Parts Scanalyzed 7 | . . . 3 . . . 4 . . Part Schematics Acquired 7 | . . . 3 . . . 4 . . Parts Damaged 1 | . . . 1 . . . . . . Bothacking | -11 -10 -10 -9 -9 -9 -8 -8 -8 -8 ------------ Run | Scr Mat Min Mat Min Exi Min Mat Gar Mat Used RIF Installer 1 | . . . . . . . . 1 . Robots Hacked 8 | . . . . . . . . 6 2 Non-combat 1 | . . . . . . . . . 1 Combat 7 | . . . . . . . . 6 1 Robot Hacks Applied 8 | . . . . . . . . 6 2 overwrite_iff 1 | . . . . . . . . 1 . formatsys_low 1 | . . . . . . . . . 1 formatsys_high 6 | . . . . . . . . 5 1 Relay Couplers Released 20 | . . . . . . . 4 16 . Machine Destruction 16 | . . . . . . . . 16 . Programmers 4 | . . . . . . . 4 . . Attached 6 | . . . . . . . . 4 2 Robots Rewired . | . . . . . . . . . . Allies Hacked . | . . . . . . . . . . Hacks Repelled . | . . . . . . . . . . Allies | -11 -10 -10 -9 -9 -9 -8 -8 -8 -8 -------- Run | Scr Mat Min Mat Min Exi Min Mat Gar Mat Total Allies 11 | . . . . . . . 2 6 3 Largest Group 5 | . . . . . . . 1 5 5 Highest-Rated Group 67 | . . . . . . . 15 67 67 Highest-Rated Ally 16 | . . . . . . . 15 16 16 Total Orders 18 | . . . . . . . . 10 8 STAY 11 | . . . . . . . . 6 5 FOLLOW 7 | . . . . . . . . 4 3 Ally Attacks 50 | . . . . . . . . 9 41 Total Damage 546 | . . . . . . . . 68 478 Kills 7 | . . . . . . . . 1 6 Allies Corrupted 1 | . . . . . . . . 1 . Allies Melted . | . . . . . . . . . . Intel | -11 -10 -10 -9 -9 -9 -8 -8 -8 -8 ------- Run | Scr Mat Min Mat Min Exi Min Mat Gar Mat Robot Analysis Total 6 | . 3 . 1 . . . 2 . . Derelict Logs Recovered 3 | . . 3 . . . . . . . Drone Launches . | . . . . . . . . . . Drone Recoveries . | . . . . . . . . . . Exploration | -11 -10 -10 -9 -9 -9 -8 -8 -8 -8 ------------- Run | Scr Mat Min Mat Min Exi Min Mat Gar Mat Turns Passed 22667 | 210 1811 966 1828 560 4211 883 4681 5781 1736 Spaces Moved 6845 | 118 834 665 537 149 787 234 1347 1601 573 Core . | . . . . . . . . . . Treads 2537 | . . . 245 149 787 55 50 1251 . Legs 43 | 43 . . . . . . . . . Wheels 4265 | 75 834 665 292 . . 179 1297 350 573 Hover . | . . . . . . . . . . Flight . | . . . . . . . . . . Fastest Speed 80 | 80 80 135 140 360 160 230 210 140 210 Average Speed 275 | 94 134 138 240 360 530 331 246 330 230 Slowest Speed 660 | 120 140 140 360 360 660 660 660 360 245 Overloaded Moves . | . . . . . . . . . . Propulsion Burnouts . | . . . . . . . . . . Robots Hopped . | . . . . . . . . . . Cave-ins Triggered . | . . . . . . . . . . Exploration Rate (%) 60 | 7 97 99 41 27 88 32 86 76 53 Regions Visited 9 Branch Regions 4 Pre-discovered Areas 5 | . 2 3 . . . . . . . Known Exits Taken 2 | . . . 1 . . . 1 . . Unknown Exits Taken 6 | 1 1 1 . 1 1 1 . . . Scrap Searched 3 | . . 2 . 1 . . . . . Spaces Dug 65 | . . . 4 . . . 11 6 44 Terrain Destroyed 110 | 2 4 . 4 . . . 50 6 44 Melee 27 | . . . 4 . . . 11 6 6 Projectile . | . . . . . . . . . . AOE 83 | 2 4 . . . . . 39 . 38 Terrain Rammed . | . . . . . . . . . . Walls Destroyed . | . . . . . . . . . . Machines Disabled . | . . . . . . . . . . Actions | -11 -10 -10 -9 -9 -9 -8 -8 -8 -8 --------- Run | Scr Mat Min Mat Min Exi Min Mat Gar Mat Total 9735 | 176 1342 702 973 161 845 299 2444 1991 802 Wait 1775 | 21 334 4 325 6 . 25 771 216 73 Move 6836 | 117 833 664 536 148 786 233 1346 1600 573 Hop . | . . . . . . . . . . Pick Up 187 | 7 33 8 14 . 31 4 51 31 8 Fast Attach 40 | . 6 2 6 . 1 . 15 9 1 Attach 48 | 2 11 . 3 . . 1 20 4 7 Detach 8 | . . . . . . . 6 1 1 Swap 124 | 1 3 6 11 . . 6 40 24 33 Drop 154 | 5 13 12 19 . 27 4 38 30 6 Fire 478 | 23 109 5 52 7 . 25 141 27 89 Melee 60 | . . . 7 . . . 11 31 11 Ram 2 | . . 1 . . . . 1 . . Kick . | . . . . . . . . . . Crush . | . . . . . . . . . . Escape Stasis 18 | . . . . . . . . 18 . Rewire . | . . . . . . . . . . Trap 5 | . . . . . . 1 4 . . Miscellaneous . | . . . . . . . . . . Route ------- -11/Scrapyard -10/Materials (discovered 4 exits: *Mat x3 / *Min) -10/Mines (discovered 2 exits: *Mat x2) -9/Materials (discovered 2 exits: *Mat / *Min) -9/Mines -9/Exiles (discovered 2 exits: [*Min x2]) -8/Mines -8/Materials (discovered 3 exits: [*Fac x2] / Gar) -8/Garrison (discovered 3 exits: *Mat x3) -8/Materials (discovered 1 exit: [*Fac]) History --------- Turn | Location | Event 4 | -11/Scrapyard | Discovered new exit (range 2) 211 | -11/Scrapyard | Entered Materials 310 | -10/Materials | Build established: Mutant 505 | -10/Materials | Discovered new exit (range 6) 658 | -10/Materials | Discovered new exit (range 8) 938 | -10/Materials | Core integrity fell below 50% 964 | -10/Materials | Lost 6 parts (2p2n2w) 1192 | -10/Materials | Build established: Scavenger-Mutant 1586 | -10/Materials | Discovered new exit (range 16) 1680 | -10/Materials | Discovered new exit (range 7) 1934 | -10/Materials | Build established: Mutant 1952 | -10/Materials | Repaired Lgt. Treads 2022 | -10/Materials | Entered Mines 2043 | -10/Mines | Learned location of Zion (-6) 2065 | -10/Mines | Met a Derelict shopkeep closing up shop 2309 | -10/Mines | Learned Materials stockpile data 2384 | -10/Mines | Met a Derelict bent on vengeance 2410 | -10/Mines | Discovered new exit (range 9) 2497 | -10/Mines | Found a hidden stash of uninstalled traps 2565 | -10/Mines | Build established: Scavenger-Mutant 2580 | -10/Mines | Discovered new exit (range 8) 2632 | -10/Mines | Learned location of Storage (-7) 2988 | -10/Mines | Entered Materials 2988 | -9/Materials | Evolved 2 slots: Utility x2 3971 | -9/Materials | Repaired Broken Hpw. Tractor Beam 4004 | -9/Materials | Repaired Imp. Ion Engine 4480 | -9/Materials | Discovered new exit (range 10) 4538 | -9/Materials | Identified exit to Mines 4711 | -9/Materials | Build established: Mutant 4816 | -9/Materials | Entered Mines 5358 | -9/Mines | Deemed a non-threat by the Exiles lab entrance 5362 | -9/Mines | Discovered new exit (range 5) 5376 | -9/Mines | Entered Exiles 5376 | -9/Exiles | Found Exiles lab abandoned 5431 | -9/Exiles | Discovered new exit (range 15) 6799 | -9/Exiles | Build established: Hauler-Mutant 7241 | -9/Exiles | Discovered new exit (range 10) 9587 | -9/Exiles | Entered Mines 10241 | -8/Mines | Core integrity fell below 50% 10427 | -8/Mines | Discovered new exit (range 8) 10470 | -8/Mines | Entered Materials 10470 | -8/Materials | Evolved 2 slots: Utility x2 10757 | -8/Materials | Destroyed 8 combat bots 10762 | -8/Materials | Lost 9 parts (1p2n3u3w) 11743 | -8/Materials | Destroyed 7 combat bots 12530 | -8/Materials | Core integrity fell below 50% 12581 | -8/Materials | Discovered new exit (range 5) 12713 | -8/Materials | Repaired Enh. Autogun 12774 | -8/Materials | Repaired Adv. Beam Cannon 12811 | -8/Materials | Repaired Ion Engine 12839 | -8/Materials | Repaired Huge Storage Unit 13403 | -8/Materials | Discovered new exit (range 17) 13471 | -8/Materials | Identified exit to Garrison 14582 | -8/Materials | Repaired Adv. Beam Cannon 14616 | -8/Materials | Repaired Lgt. Treads 15151 | -8/Materials | Entered Garrison 15151 | -8/Garrison | Accompanied by 1 ally 15164 | -8/Garrison | Installed Relay Interface Framework 15488 | -8/Garrison | Triggered checkpoint 15548 | -8/Garrison | Build established: Mutant 15565 | -8/Garrison | Garrison Relay disabled 16024 | -8/Garrison | Triggered checkpoint 16051 | -8/Garrison | Build established: Bothacker-Mutant 16540 | -8/Garrison | Discovered new exit (range 15) 16656 | -8/Garrison | Triggered checkpoint 16747 | -8/Garrison | Garrison Relay disabled 16970 | -8/Garrison | Triggered checkpoint 17605 | -8/Garrison | Discovered new exit (range 9) 17685 | -8/Garrison | Triggered checkpoint 18575 | -8/Garrison | Garrison Relay disabled 18653 | -8/Garrison | Build established: Commander-Mutant 18783 | -8/Garrison | Triggered checkpoint 18928 | -8/Garrison | Triggered checkpoint 18984 | -8/Garrison | Garrison Relay disabled 19125 | -8/Garrison | Discovered new exit (range 9) 19276 | -8/Garrison | Triggered checkpoint 19280 | -8/Garrison | Build established: Bothacker-Mutant 20932 | -8/Garrison | Entered Materials 20932 | -8/Materials | Accompanied by 5 allies 21633 | -8/Materials | Core integrity fell below 20% 21916 | -8/Materials | Discovered new exit (range 14) 22571 | -8/Materials | Garrison activated, responded to threat 22668 | -8/Materials | Destroyed by Y-45 Defender with Heavy Assault Rifle Last Messages --------------- 22594_ |8MCD/0WWAKO 22603_ Y-45 Defender destroyed. 22604_ Acquired 56 matter. 22605_ Technician 3b destroyed. 22607_ K-01 Serf collects debris. 22613_ Y-45 Defender destroyed. 22614_ Acquired 54 matter. 22616_ Acquired 20 matter. 22621_ Acquired Hacking Suite. 22626_ R-06 Scavenger collects Imp. Ion Engine. 22629_ K-01 Serf collects debris. 22629_ R-06 Scavenger collects Hvy. Assault Rifle. 22630_ K-01 Serf collects debris. 22636_ Wheel destroyed. 22639_ Y-45 Defender destroyed. 22646_ K-01 Serf collects debris. Map ----- +----------------------------------------------------+ | ## ^ """ #???????????????? | | ## ###+####### """"" ????????????????? | | ####+##### #??# """"" #?????????????????"" | | # # #??# """"" #?????????????????"Y | | # # #### """ #?????????????????"" | | # # ##"" ^ #?????? ?????????? | | # # ##"Y ^ #????? ????????? | | # # ##"" """ #????? ????????? | | # # #### """"" #????? ????????? | | # # #??# """"" ###??? ????????? | | + # #??# [ """"" # ##### #????????? | | # ######??# """ # # #????????? | | ###########??????# # """ # #????????? | | ## ] = *###??????# # "G + /????????? | | ## #????????# + """ # #????????? | | # " "" #????????# # # #????????? | | + "R"" #????????######### ### #### #????????? | | # """ #????????????????# ######## #????????? | | ## #????????????????# #! #^^^#????????? | | #########????????????????# # "T"*# #????????? | | ######???????????????????# #! """ + +????????? | | ##"""#??????????? ???????# # [#! #????????? | | ##"T"###########? """???## ########= #????????? | | ]]*^ +? """ ??# ####### #### # | | ]*^* #??# """ # # | | " ]^ !* #??# /@ =%! # | | T * !* #??# """# * # | | " !* #??# R"# ############## # | | [ ###? ?"""#######?????????????? ## | | / + ??????????????????????????? #? | | ## ##########??????????????????????????????? #? | | ?# ########??????????????????????????????????#? | | ?# # !##??????????????????????????????????? | | ?# # = = "#??????????????????????????????????? | | ?# # " T#??????????????????????????????????? | | ?# + T "#??????????????????????????????????? | | ?# # " ##??????????????????????????????????? | | ?# # #???????????????????????????????????? | | ?# ########???????????????????????????????????? | | ?# #??????????????????????????????????????????? | | ?# #??????????????????????????????????????????? | | ?# #??????????????????????????????????????????? | | ##+##+##?????????????????????????????????????????? | | #?????????????????????????????????????????? | | [ #?????????????????????????????????????????? | | !#?????????????????????????????????????????? | | #?????????????????????????????????????????? | | #######??????????????????????????????????????????? | | | | | +----------------------------------------------------+ Best States ------------- Heat Dissipation 53 Energy Generation 18 Energy Capacity 310 Matter Stores 300 Matter Capacity 300 Sight Range 16 Terrain Scan Range 16 Terrain Scan Density 10 Armor Coverage 300 Evasion (%) 55 Targeting Accuracy 16 Recoil Reduction 2 Salvage Targeting 1 Offensive Hacking 20 Relay Coupler Types 29 Relay Coupler Value 2 Item Schematics ----------------- Cargo Storage Unit | -10/Materials | Hacked Hacking Suite | -9/Materials | Scanalyzed Hpw. Tractor Beam | -9/Materials | Scanalyzed Hcp. Matter Pod | -9/Materials | Scanalyzed Arm. Wheel | -9/Materials | Extracted Adv. Beam Cannon | -9/Materials | Extracted Tractor Beam | -9/Materials | Extracted Huge Storage Unit | -8/Materials | Hacked Enh. Autogun | -8/Materials | Scanalyzed Lrn. Tractor Beam | -8/Materials | Scanalyzed Plasma Cutter | -8/Materials | Scanalyzed Adv. Targeting Computer | -8/Materials | Scanalyzed Robot Schematics ------------------ A-02 Transporter | -8/Materials | Hacked Fabricated ------------ Nothing Alien Tech Used ----------------- None Achievements -------------- None Challenges ------------ None Game ------ Seed AnalysisMappingMembrane Manual? 0 Play Time 02:05:31 Cumulative 256.8 hours Start 2021.05.13 @ 17:57:05 End 2021.05.16 @ 17:39:33 Sessions 7 Manual Loads 0 Difficulty Rogue Special Mode None Game No. 110 Rogue 110 Adventurer 0 Explorer 0 Win Type - Total 9 Types 7/0/0/1/0/1/0/0/0 Lore% 84 Gallery% 83 Achievement% 74 Wizard Run 0 Options --------- ASCII 1 Keyboard 0 Movement Numpad Keybinds 0 Fullscreen 1 Font 18/Smallcaps Map View 76x50 Tactical HUD 1 Map Filters NONE Filters NONE Steam 1 RUN: 3361fd78-494e-4e8e-af74-0275bc6a9b98